[Event "Titled Tuesday Blitz November 14 Late 2023"]
[White "Maltsevskaya, Aleksandra"]
[Black "Statham_l3"]
[WhiteFideId "24174041"]
[WhiteElo "2643"]
[BlackElo "2545"]
[Result "0-1"]
[Round "11"]
[TimeControl "180+1"]
[Date "2023.11.14"]
[WhiteClock "0:00:02"]
[BlackClock "0:00:06"]
[Board "32"]

1. e4 {[%clk 0:03:00]}  e5 {[%clk 0:02:59]} 2. Nf3 {[%clk 0:03:01]}  Nc6 {[%clk 0:02:59]} 3. Bb5 {[%clk 0:03:01]}  Nf6 {[%clk 0:02:57]} 4. O-O {[%clk 0:02:59]}  Nxe4 {[%clk 0:02:57]} 5. d4 {[%clk 0:03:00]}  Nd6 {[%clk 0:02:57]} 6. Bxc6 {[%clk 0:03:00]}  dxc6 {[%clk 0:02:58]} 7. dxe5 {[%clk 0:03:01]}  Nf5 {[%clk 0:02:59]} 8. Qxd8+ {[%clk 0:03:02]}  Kxd8 {[%clk 0:03:00]} 9. b3 {[%clk 0:03:03]}  Be6 {[%clk 0:02:54]} 10. Bb2 {[%clk 0:03:03]}  Ke8 {[%clk 0:02:48]} 11. Nbd2 {[%clk 0:03:03]}  Rd8 {[%clk 0:02:44]} 12. Ne4 {[%clk 0:03:02]}  Be7 {[%clk 0:02:43]} 13. Rfe1 {[%clk 0:03:00]}  h5 {[%clk 0:02:30]} 14. c4 {[%clk 0:02:55]}  h4 {[%clk 0:02:29]} 15. h3 {[%clk 0:02:54]}  Rh6 {[%clk 0:02:25]} 16. Nfg5 {[%clk 0:02:47]}  Bc8 {[%clk 0:02:04]} 17. Rad1 {[%clk 0:02:46]}  Rxd1 {[%clk 0:02:04]} 18. Rxd1 {[%clk 0:02:46]}  Rg6 {[%clk 0:02:05]} 19. f4 {[%clk 0:02:46]}  f6 {[%clk 0:01:43]} 20. Nf3 {[%clk 0:02:10]}  Rxg2+ {[%clk 0:01:28]} 21. Kxg2 {[%clk 0:01:51]}  Ne3+ {[%clk 0:01:28]} 22. Kh2 {[%clk 0:01:47]}  Nxd1 {[%clk 0:01:29]} 23. Ba1 {[%clk 0:01:37]}  Bf5 {[%clk 0:01:21]} 24. Ned2 {[%clk 0:01:37]}  fxe5 {[%clk 0:01:04]} 25. Bxe5 {[%clk 0:01:36]}  Bd6 {[%clk 0:00:54]} 26. Nxh4 {[%clk 0:01:34]}  Bd3 {[%clk 0:00:37]} 27. Kg3 {[%clk 0:01:31]}  Bxe5 {[%clk 0:00:35]} 28. fxe5 {[%clk 0:01:31]}  Nc3 {[%clk 0:00:35]} 29. a3 {[%clk 0:01:23]}  c5 {[%clk 0:00:26]} 30. Kf4 {[%clk 0:01:22]}  a5 {[%clk 0:00:20]} 31. e6 {[%clk 0:01:00]}  Ke7 {[%clk 0:00:19]} 32. Ke5 {[%clk 0:01:00]}  Ne2 {[%clk 0:00:13]} 33. Nhf3 {[%clk 0:00:58]}  Bg6 {[%clk 0:00:07]} 34. Nf1 {[%clk 0:00:50]}  Nc1 {[%clk 0:00:07]} 35. Ne1 {[%clk 0:00:37]}  Nxb3 {[%clk 0:00:07]} 36. Ne3 {[%clk 0:00:37]}  c6 {[%clk 0:00:06]} 37. N1g2 {[%clk 0:00:33]}  Nc1 {[%clk 0:00:05]} 38. Kf4 {[%clk 0:00:19]}  Nd3+ {[%clk 0:00:05]} 39. Kg5 {[%clk 0:00:19]}  Be4 {[%clk 0:00:05]} 40. Nf4 {[%clk 0:00:19]}  Ne5 {[%clk 0:00:05]} 41. h4 {[%clk 0:00:14]}  Nf3+ {[%clk 0:00:04]} 42. Kg4 {[%clk 0:00:14]}  Ne5+ {[%clk 0:00:04]} 43. Kg3 {[%clk 0:00:15]}  b5 {[%clk 0:00:04]} 44. cxb5 {[%clk 0:00:13]}  cxb5 {[%clk 0:00:05]} 45. Ne2 {[%clk 0:00:07]}  b4 {[%clk 0:00:05]} 46. axb4 {[%clk 0:00:07]}  cxb4 {[%clk 0:00:06]} 47. Kf4 {[%clk 0:00:07]}  Bd3 {[%clk 0:00:05]} 48. Nd4 {[%clk 0:00:06]}  Nc4 {[%clk 0:00:05]} 49. Nd5+ {[%clk 0:00:07]}  Kd6 {[%clk 0:00:05]} 50. e7 {[%clk 0:00:07]}  Bg6 {[%clk 0:00:03]} 51. Kg5 {[%clk 0:00:07]}  Be8 {[%clk 0:00:03]} 52. Nf4 {[%clk 0:00:03]}  Kxe7 {[%clk 0:00:02]} 53. Nd5+ {[%clk 0:00:01]}  Kd6 {[%clk 0:00:02]} 54. Ne3 {[%clk 0:00:01]}  Nxe3 {[%clk 0:00:02]} 55. Kf4 {[%clk 0:00:01]}  Nd5+ {[%clk 0:00:02]} 56. Ke4 {[%clk 0:00:02]}  Kc5 {[%clk 0:00:03]} 57. Kd3 {[%clk 0:00:02]}  Bg6+ {[%clk 0:00:04]} 58. Ke2 {[%clk 0:00:02]}  Kxd4 {[%clk 0:00:05]} 59. Kf3 {[%clk 0:00:03]}  Bh5+ {[%clk 0:00:05]} 60. Kg3 {[%clk 0:00:02]}  b3 {[%clk 0:00:06]} 0-1


[Site "https://www.chess.com"]

[Event "Titled Tuesday Blitz November 14 Late 2023"]
[White "JackRodgers"]
[Black "reevecanada"]
[WhiteElo "2544"]
[BlackElo "2643"]
[Result "1-0"]
[Round "11"]
[TimeControl "180+1"]
[Date "2023.11.14"]
[WhiteClock "0:00:19"]
[BlackClock "0:00:29"]
[Board "33"]

1. d4 {[%clk 0:03:00]}  Nf6 {[%clk 0:02:58]} 2. Bg5 {[%clk 0:03:01]}  d5 {[%clk 0:02:54]} 3. Bxf6 {[%clk 0:03:01]}  gxf6 {[%clk 0:02:54]} 4. e3 {[%clk 0:02:59]}  c5 {[%clk 0:02:54]} 5. dxc5 {[%clk 0:03:00]}  e5 {[%clk 0:02:52]} 6. e4 {[%clk 0:02:52]}  d4 {[%clk 0:02:52]} 7. Bc4 {[%clk 0:02:48]}  Bxc5 {[%clk 0:02:51]} 8. c3 {[%clk 0:02:39]}  Qb6 {[%clk 0:02:41]} 9. Qb3 {[%clk 0:02:33]}  dxc3 {[%clk 0:02:37]} 10. Qxb6 {[%clk 0:02:30]}  Bxb6 {[%clk 0:02:22]} 11. Nxc3 {[%clk 0:02:30]}  Be6 {[%clk 0:02:20]} 12. Nd5 {[%clk 0:02:26]}  Ba5+ {[%clk 0:02:19]} 13. Ke2 {[%clk 0:02:25]}  Nc6 {[%clk 0:02:15]} 14. Nf3 {[%clk 0:02:16]}  O-O-O {[%clk 0:02:14]} 15. Rhd1 {[%clk 0:02:13]}  f5 {[%clk 0:02:09]} 16. exf5 {[%clk 0:02:06]}  Bxf5 {[%clk 0:02:09]} 17. Rac1 {[%clk 0:02:05]}  Kb8 {[%clk 0:02:06]} 18. Bb5 {[%clk 0:01:56]}  e4 {[%clk 0:01:53]} 19. Nh4 {[%clk 0:01:49]}  Be6 {[%clk 0:01:30]} 20. Bxc6 {[%clk 0:01:41]}  bxc6 {[%clk 0:01:30]} 21. Ne7 {[%clk 0:01:37]}  Rxd1 {[%clk 0:01:13]} 22. Kxd1 {[%clk 0:01:38]}  Rd8+ {[%clk 0:01:05]} 23. Ke2 {[%clk 0:01:38]}  Bg4+ {[%clk 0:01:05]} 24. f3 {[%clk 0:01:37]}  exf3+ {[%clk 0:00:59]} 25. gxf3 {[%clk 0:01:38]}  Rd2+ {[%clk 0:00:51]} 26. Ke3 {[%clk 0:01:34]}  Bd7 {[%clk 0:00:50]} 27. b4 {[%clk 0:01:17]}  Rxh2 {[%clk 0:00:47]} 28. bxa5 {[%clk 0:01:13]}  Rxh4 {[%clk 0:00:45]} 29. Nxc6+ {[%clk 0:01:07]}  Kb7 {[%clk 0:00:39]} 30. Nd8+ {[%clk 0:00:56]}  Ka6 {[%clk 0:00:38]} 31. Nxf7 {[%clk 0:00:53]}  Be6 {[%clk 0:00:33]} 32. Rc6+ {[%clk 0:00:48]}  Kxa5 {[%clk 0:00:32]} 33. Rxe6 {[%clk 0:00:47]}  Ra4 {[%clk 0:00:31]} 34. Re7 {[%clk 0:00:39]}  Ra3+ {[%clk 0:00:30]} 35. Kf4 {[%clk 0:00:37]}  a6 {[%clk 0:00:31]} 36. Nd6 {[%clk 0:00:33]}  Rxa2 {[%clk 0:00:31]} 37. Rxh7 {[%clk 0:00:31]}  Kb4 {[%clk 0:00:29]} 38. Rb7+ {[%clk 0:00:29]}  Kc5 {[%clk 0:00:29]} 39. Ne4+ {[%clk 0:00:30]}  Kc6 {[%clk 0:00:29]} 40. Ra7 {[%clk 0:00:25]}  a5 {[%clk 0:00:28]} 41. Ke5 {[%clk 0:00:23]}  Kb6 {[%clk 0:00:26]} 42. Ra8 {[%clk 0:00:22]}  Ra3 {[%clk 0:00:23]} 43. f4 {[%clk 0:00:22]}  a4 {[%clk 0:00:23]} 44. f5 {[%clk 0:00:22]}  Ra1 {[%clk 0:00:21]} 45. f6 {[%clk 0:00:22]}  a3 {[%clk 0:00:20]} 46. f7 {[%clk 0:00:20]}  Rf1 {[%clk 0:00:20]} 47. f8=Q {[%clk 0:00:19]}  Rxf8 {[%clk 0:00:20]} 48. Rxf8 {[%clk 0:00:19]}  a2 {[%clk 0:00:21]} 49. Ra8 {[%clk 0:00:18]}  Kb5 {[%clk 0:00:22]} 50. Rxa2 {[%clk 0:00:18]}  Kc4 {[%clk 0:00:23]} 51. Rd2 {[%clk 0:00:18]}  Kb4 {[%clk 0:00:23]} 52. Ng5 {[%clk 0:00:17]}  Ka3 {[%clk 0:00:24]} 53. Rd4 {[%clk 0:00:17]}  Ka2 {[%clk 0:00:25]} 54. Kd5 {[%clk 0:00:17]}  Ka1 {[%clk 0:00:26]} 55. Rb4 {[%clk 0:00:18]}  Ka2 {[%clk 0:00:26]} 56. Kc4 {[%clk 0:00:18]}  Ka1 {[%clk 0:00:27]} 57. Rb8 {[%clk 0:00:19]}  Ka2 {[%clk 0:00:28]} 58. Kc3 {[%clk 0:00:20]}  Ka1 {[%clk 0:00:29]} 59. Kc2 {[%clk 0:00:19]}  Ka2 {[%clk 0:00:29]} 60. Ra8# {[%clk 0:00:19]} 1-0


[Site "https://www.chess.com"]

[Event "Titled Tuesday Blitz November 14 Late 2023"]
[White "Willy, Stephen"]
[Black "Sakun, Volodymyr"]
[WhiteFideId "30981468"]
[BlackFideId "14114062"]
[WhiteElo "2493"]
[BlackElo "2617"]
[Result "0-1"]
[Round "11"]
[TimeControl "180+1"]
[Date "2023.11.14"]
[WhiteClock "0:00:01"]
[BlackClock "0:00:13"]
[Board "36"]

1. e4 {[%clk 0:03:00]}  e5 {[%clk 0:02:59]} 2. Nf3 {[%clk 0:02:59]}  Nc6 {[%clk 0:03:00]} 3. c3 {[%clk 0:03:00]}  Nf6 {[%clk 0:02:58]} 4. d4 {[%clk 0:03:00]}  Nxe4 {[%clk 0:02:55]} 5. d5 {[%clk 0:03:00]}  Ne7 {[%clk 0:02:55]} 6. Nxe5 {[%clk 0:03:00]}  Ng6 {[%clk 0:02:55]} 7. Nxg6 {[%clk 0:03:00]}  hxg6 {[%clk 0:02:56]} 8. Qe2 {[%clk 0:03:00]}  Qe7 {[%clk 0:02:54]} 9. Be3 {[%clk 0:03:00]}  Nf6 {[%clk 0:02:45]} 10. c4 {[%clk 0:02:59]}  d6 {[%clk 0:02:38]} 11. Nc3 {[%clk 0:02:55]}  Ng4 {[%clk 0:02:23]} 12. O-O-O {[%clk 0:02:51]}  Nxe3 {[%clk 0:02:22]} 13. fxe3 {[%clk 0:02:51]}  g5 {[%clk 0:02:18]} 14. e4 {[%clk 0:02:42]}  g6 {[%clk 0:02:18]} 15. e5 {[%clk 0:02:28]}  Qxe5 {[%clk 0:01:47]} 16. Qf2 {[%clk 0:02:15]}  Qf4+ {[%clk 0:01:45]} 17. Qxf4 {[%clk 0:02:15]}  gxf4 {[%clk 0:01:46]} 18. Re1+ {[%clk 0:02:11]}  Kd8 {[%clk 0:01:43]} 19. Bd3 {[%clk 0:01:55]}  Bg7 {[%clk 0:01:37]} 20. h3 {[%clk 0:01:42]}  Bd7 {[%clk 0:01:27]} 21. Rhf1 {[%clk 0:01:37]}  Bxc3 {[%clk 0:01:04]} 22. bxc3 {[%clk 0:01:35]}  g5 {[%clk 0:01:04]} 23. Re2 {[%clk 0:00:54]}  f5 {[%clk 0:00:58]} 24. Rfe1 {[%clk 0:00:52]}  c6 {[%clk 0:00:44]} 25. Re7 {[%clk 0:00:50]}  cxd5 {[%clk 0:00:39]} 26. cxd5 {[%clk 0:00:46]}  Rc8 {[%clk 0:00:39]} 27. Kd2 {[%clk 0:00:31]}  Rc5 {[%clk 0:00:37]} 28. c4 {[%clk 0:00:22]}  g4 {[%clk 0:00:28]} 29. Rg7 {[%clk 0:00:17]}  f3 {[%clk 0:00:19]} 30. gxf3 {[%clk 0:00:15]}  gxh3 {[%clk 0:00:19]} 31. Rh1 {[%clk 0:00:08]}  Ra5 {[%clk 0:00:18]} 32. Ke3 {[%clk 0:00:04]}  Rxa2 {[%clk 0:00:16]} 33. Kf4 {[%clk 0:00:03]}  Ra3 {[%clk 0:00:15]} 34. Bxf5 {[%clk 0:00:02]}  Bxf5 {[%clk 0:00:14]} 35. Kxf5 {[%clk 0:00:03]}  Rxf3+ {[%clk 0:00:14]} 36. Ke6 {[%clk 0:00:02]}  Rh6+ {[%clk 0:00:13]} 37. Rg6 {[%clk 0:00:01]}  Rxg6# {[%clk 0:00:13]} 0-1


[Site "https://www.chess.com"]

[Event "Titled Tuesday Blitz November 14 Late 2023"]
[White "Kubicka, Anna"]
[Black "Gimenez Aguirre, Alejo Ismael"]
[WhiteFideId "1152254"]
[BlackFideId "32041667"]
[WhiteElo "2492"]
[BlackElo "2617"]
[Result "1-0"]
[Round "11"]
[TimeControl "180+1"]
[Date "2023.11.14"]
[WhiteClock "0:00:20"]
[BlackClock "0:00:23"]
[Board "37"]

1. e4 {[%clk 0:03:00]}  c5 {[%clk 0:02:58]} 2. Ne2 {[%clk 0:03:00]}  g6 {[%clk 0:02:58]} 3. g3 {[%clk 0:03:01]}  Bg7 {[%clk 0:02:58]} 4. Bg2 {[%clk 0:03:01]}  h5 {[%clk 0:02:58]} 5. h3 {[%clk 0:03:01]}  d6 {[%clk 0:02:58]} 6. O-O {[%clk 0:02:58]}  Nc6 {[%clk 0:02:59]} 7. c3 {[%clk 0:02:58]}  c4 {[%clk 0:02:58]} 8. b3 {[%clk 0:02:52]}  cxb3 {[%clk 0:02:58]} 9. axb3 {[%clk 0:02:51]}  Nf6 {[%clk 0:02:56]} 10. d4 {[%clk 0:02:50]}  O-O {[%clk 0:02:56]} 11. Be3 {[%clk 0:02:49]}  a6 {[%clk 0:02:55]} 12. c4 {[%clk 0:02:35]}  Rb8 {[%clk 0:02:52]} 13. Nbc3 {[%clk 0:02:32]}  Bd7 {[%clk 0:02:48]} 14. d5 {[%clk 0:02:27]}  Nb4 {[%clk 0:02:47]} 15. Nd4 {[%clk 0:02:20]}  b5 {[%clk 0:02:38]} 16. cxb5 {[%clk 0:02:18]}  axb5 {[%clk 0:02:38]} 17. Qd2 {[%clk 0:02:08]}  e5 {[%clk 0:02:20]} 18. dxe6 {[%clk 0:02:02]}  Bxe6 {[%clk 0:02:18]} 19. Ncxb5 {[%clk 0:01:58]}  Qd7 {[%clk 0:01:48]} 20. Qxb4 {[%clk 0:01:57]}  Bxh3 {[%clk 0:01:47]} 21. Qxd6 {[%clk 0:01:42]}  Qc8 {[%clk 0:01:47]} 22. Rac1 {[%clk 0:01:38]}  Qg4 {[%clk 0:01:43]} 23. Bf3 {[%clk 0:01:18]}  Qd7 {[%clk 0:01:38]} 24. e5 {[%clk 0:01:06]}  Qxd6 {[%clk 0:01:12]} 25. Nxd6 {[%clk 0:01:03]}  Ne8 {[%clk 0:01:13]} 26. Nxe8 {[%clk 0:00:57]}  Rfxe8 {[%clk 0:01:13]} 27. Bf4 {[%clk 0:00:53]}  Bxf1 {[%clk 0:01:13]} 28. Rxf1 {[%clk 0:00:49]}  Bxe5 {[%clk 0:01:12]} 29. Bxe5 {[%clk 0:00:49]}  Rxe5 {[%clk 0:01:13]} 30. Nc6 {[%clk 0:00:49]}  Rf5 {[%clk 0:01:10]} 31. Nxb8 {[%clk 0:00:48]}  Rxf3 {[%clk 0:01:10]} 32. Rb1 {[%clk 0:00:48]}  Rf5 {[%clk 0:01:10]} 33. b4 {[%clk 0:00:47]}  Rb5 {[%clk 0:01:11]} 34. Nc6 {[%clk 0:00:46]}  Kf8 {[%clk 0:01:09]} 35. Nd4 {[%clk 0:00:44]}  Rd5 {[%clk 0:01:08]} 36. Ne2 {[%clk 0:00:44]}  Rb5 {[%clk 0:01:05]} 37. Nc3 {[%clk 0:00:44]}  Rb6 {[%clk 0:01:05]} 38. b5 {[%clk 0:00:44]}  Ke8 {[%clk 0:01:06]} 39. Na4 {[%clk 0:00:44]}  Rb8 {[%clk 0:01:05]} 40. Nc5 {[%clk 0:00:38]}  Ke7 {[%clk 0:01:03]} 41. b6 {[%clk 0:00:33]}  Kd6 {[%clk 0:01:03]} 42. Ne4+ {[%clk 0:00:33]}  Kd5 {[%clk 0:01:01]} 43. Nc3+ {[%clk 0:00:31]}  Kc6 {[%clk 0:00:59]} 44. b7 {[%clk 0:00:28]}  g5 {[%clk 0:00:56]} 45. Ne4 {[%clk 0:00:25]}  g4 {[%clk 0:00:34]} 46. Nf6 {[%clk 0:00:25]}  h4 {[%clk 0:00:32]} 47. gxh4 {[%clk 0:00:23]}  Kc7 {[%clk 0:00:32]} 48. Nxg4 {[%clk 0:00:21]}  f5 {[%clk 0:00:31]} 49. Ne3 {[%clk 0:00:20]}  f4 {[%clk 0:00:24]} 50. Nd5+ {[%clk 0:00:20]}  Kd6 {[%clk 0:00:24]} 51. Nxf4 {[%clk 0:00:20]}  Kc7 {[%clk 0:00:25]} 52. Kh2 {[%clk 0:00:20]}  Kc6 {[%clk 0:00:25]} 53. Kh3 {[%clk 0:00:20]}  Kc7 {[%clk 0:00:25]} 54. h5 {[%clk 0:00:19]}  Kc6 {[%clk 0:00:26]} 55. Kh4 {[%clk 0:00:20]}  Kc7 {[%clk 0:00:26]} 56. h6 {[%clk 0:00:20]}  Rh8 {[%clk 0:00:23]} 57. b8=Q+ {[%clk 0:00:20]} 1-0


[Site "https://www.chess.com"]

[Event "Titled Tuesday Blitz November 14 Late 2023"]
[White "GatoRojo150"]
[Black "Karamsetty, Jeevan"]
[BlackFideId "2025337"]
[WhiteElo "2621"]
[BlackElo "2541"]
[Result "0-1"]
[Round "11"]
[TimeControl "180+1"]
[Date "2023.11.14"]
[WhiteClock "0:00:21"]
[BlackClock "0:00:49"]
[Board "40"]

1. e4 {[%clk 0:03:00]}  c5 {[%clk 0:02:56]} 2. Nf3 {[%clk 0:03:01]}  Nc6 {[%clk 0:02:55]} 3. Nc3 {[%clk 0:03:01]}  g6 {[%clk 0:02:53]} 4. Bc4 {[%clk 0:03:01]}  e6 {[%clk 0:02:53]} 5. O-O {[%clk 0:03:01]}  Bg7 {[%clk 0:02:53]} 6. d4 {[%clk 0:03:01]}  Nxd4 {[%clk 0:02:45]} 7. Nxd4 {[%clk 0:03:01]}  cxd4 {[%clk 0:02:45]} 8. Nb5 {[%clk 0:03:01]}  d6 {[%clk 0:02:43]} 9. c3 {[%clk 0:03:00]}  Ne7 {[%clk 0:02:39]} 10. Nxd4 {[%clk 0:03:00]}  O-O {[%clk 0:02:39]} 11. Bg5 {[%clk 0:02:55]}  Qc7 {[%clk 0:02:35]} 12. Bb3 {[%clk 0:02:55]}  a6 {[%clk 0:02:33]} 13. f4 {[%clk 0:02:55]}  Nc6 {[%clk 0:02:30]} 14. Kh1 {[%clk 0:02:53]}  Qb6 {[%clk 0:02:17]} 15. Nf3 {[%clk 0:02:52]}  h6 {[%clk 0:02:16]} 16. Bh4 {[%clk 0:02:49]}  Na5 {[%clk 0:02:14]} 17. Be7 {[%clk 0:02:41]}  Re8 {[%clk 0:02:12]} 18. Qxd6 {[%clk 0:02:41]}  Qb5 {[%clk 0:01:55]} 19. Nd4 {[%clk 0:02:30]}  Bxd4 {[%clk 0:01:54]} 20. cxd4 {[%clk 0:02:31]}  Nxb3 {[%clk 0:01:48]} 21. axb3 {[%clk 0:02:32]}  Qxb3 {[%clk 0:01:48]} 22. Bf6 {[%clk 0:02:24]}  Qb5 {[%clk 0:01:44]} 23. Qa3 {[%clk 0:02:19]}  Bd7 {[%clk 0:01:36]} 24. Qg3 {[%clk 0:02:08]}  Kh7 {[%clk 0:01:35]} 25. Be5 {[%clk 0:02:07]}  Rac8 {[%clk 0:01:29]} 26. Qh4 {[%clk 0:02:00]}  Rg8 {[%clk 0:01:19]} 27. Rf3 {[%clk 0:01:45]}  h5 {[%clk 0:01:07]} 28. g4 {[%clk 0:01:12]}  Qe2 {[%clk 0:01:05]} 29. Rf2 {[%clk 0:00:51]}  Qxe4+ {[%clk 0:01:03]} 30. Kg1 {[%clk 0:00:50]}  Bc6 {[%clk 0:01:01]} 31. Kf1 {[%clk 0:00:30]}  Qh1+ {[%clk 0:01:01]} 32. Ke2 {[%clk 0:00:31]}  Bb5+ {[%clk 0:00:56]} 33. Ke3 {[%clk 0:00:29]}  Qxa1 {[%clk 0:00:57]} 34. gxh5 {[%clk 0:00:27]}  Qe1+ {[%clk 0:00:50]} 35. Kf3 {[%clk 0:00:25]}  Qd1+ {[%clk 0:00:49]} 36. Ke3 {[%clk 0:00:21]}  Qd3# {[%clk 0:00:49]} 0-1


[Site "https://www.chess.com"]

[Event "Titled Tuesday Blitz November 14 Late 2023"]
[White "Golubev, Mikhail"]
[Black "Kanyamarala, Trisha"]
[WhiteFideId "14100983"]
[BlackFideId "45004722"]
[WhiteElo "2603"]
[BlackElo "2510"]
[Result "1-0"]
[Round "11"]
[TimeControl "180+1"]
[Date "2023.11.14"]
[WhiteClock "0:00:11"]
[BlackClock "0:00:13"]
[Board "41"]

1. e4 {[%clk 0:03:00]}  c5 {[%clk 0:02:54]} 2. Nf3 {[%clk 0:03:00]}  Nc6 {[%clk 0:02:53]} 3. Nc3 {[%clk 0:03:00]}  d6 {[%clk 0:02:48]} 4. d4 {[%clk 0:02:59]}  cxd4 {[%clk 0:02:49]} 5. Nxd4 {[%clk 0:03:00]}  Nf6 {[%clk 0:02:49]} 6. Bc4 {[%clk 0:03:00]}  e6 {[%clk 0:02:49]} 7. Be3 {[%clk 0:02:59]}  a6 {[%clk 0:02:49]} 8. Bb3 {[%clk 0:02:52]}  Bd7 {[%clk 0:02:45]} 9. f4 {[%clk 0:02:51]}  b5 {[%clk 0:02:44]} 10. f5 {[%clk 0:02:45]}  e5 {[%clk 0:02:40]} 11. Nde2 {[%clk 0:02:38]}  b4 {[%clk 0:02:39]} 12. Nd5 {[%clk 0:02:37]}  Nxd5 {[%clk 0:02:11]} 13. Qxd5 {[%clk 0:02:38]}  Qe7 {[%clk 0:01:56]} 14. O-O {[%clk 0:02:28]}  Rb8 {[%clk 0:01:52]} 15. a4 {[%clk 0:02:19]}  Nd8 {[%clk 0:01:39]} 16. f6 {[%clk 0:02:03]}  gxf6 {[%clk 0:01:37]} 17. Ng3 {[%clk 0:02:03]}  Be6 {[%clk 0:01:34]} 18. Qd3 {[%clk 0:02:00]}  h5 {[%clk 0:01:31]} 19. Nf5 {[%clk 0:01:50]}  Bxf5 {[%clk 0:01:28]} 20. Rxf5 {[%clk 0:01:48]}  Ne6 {[%clk 0:01:24]} 21. Qxa6 {[%clk 0:01:43]}  Bh6 {[%clk 0:01:23]} 22. Bf2 {[%clk 0:01:33]}  Bf4 {[%clk 0:01:14]} 23. g3 {[%clk 0:01:28]}  Ng7 {[%clk 0:01:09]} 24. gxf4 {[%clk 0:01:24]}  Nxf5 {[%clk 0:01:10]} 25. exf5 {[%clk 0:01:25]}  Rg8+ {[%clk 0:01:09]} 26. Kh1 {[%clk 0:01:10]}  Qc7 {[%clk 0:01:07]} 27. Qc4 {[%clk 0:01:03]}  Qd7 {[%clk 0:00:57]} 28. Rg1 {[%clk 0:00:55]}  Rxg1+ {[%clk 0:00:46]} 29. Kxg1 {[%clk 0:00:56]}  Kf8 {[%clk 0:00:39]} 30. Bh4 {[%clk 0:00:24]}  Kg7 {[%clk 0:00:33]} 31. Qe4 {[%clk 0:00:23]}  Kh7 {[%clk 0:00:29]} 32. Bxf6 {[%clk 0:00:22]}  Qa7+ {[%clk 0:00:16]} 33. Kf1 {[%clk 0:00:22]}  Qa6+ {[%clk 0:00:13]} 34. Bc4 {[%clk 0:00:21]}  Qxa4 {[%clk 0:00:13]} 35. Bxf7 {[%clk 0:00:15]}  Qa1+ {[%clk 0:00:13]} 36. Kf2 {[%clk 0:00:13]}  Qxb2 {[%clk 0:00:12]} 37. Bg6+ {[%clk 0:00:12]}  Kh6 {[%clk 0:00:12]} 38. Bg5+ {[%clk 0:00:12]}  Kg7 {[%clk 0:00:12]} 39. f6+ {[%clk 0:00:07]}  Kh8 {[%clk 0:00:11]} 40. fxe5 {[%clk 0:00:07]}  dxe5 {[%clk 0:00:10]} 41. Bh6 {[%clk 0:00:07]}  Qd4+ {[%clk 0:00:10]} 42. Qxd4 {[%clk 0:00:07]}  exd4 {[%clk 0:00:10]} 43. f7 {[%clk 0:00:07]}  d3 {[%clk 0:00:10]} 44. cxd3 {[%clk 0:00:07]}  b3 {[%clk 0:00:10]} 45. f8=Q+ {[%clk 0:00:06]}  Rxf8+ {[%clk 0:00:10]} 46. Bxf8 {[%clk 0:00:07]}  b2 {[%clk 0:00:10]} 47. d4 {[%clk 0:00:07]}  Kg8 {[%clk 0:00:11]} 48. Bh6 {[%clk 0:00:07]}  h4 {[%clk 0:00:10]} 49. Bb1 {[%clk 0:00:08]}  h3 {[%clk 0:00:10]} 50. Bf4 {[%clk 0:00:08]}  Kf7 {[%clk 0:00:10]} 51. Kg3 {[%clk 0:00:09]}  Ke6 {[%clk 0:00:11]} 52. Be5 {[%clk 0:00:09]}  Kd5 {[%clk 0:00:12]} 53. Kxh3 {[%clk 0:00:10]}  Kc4 {[%clk 0:00:12]} 54. Kg3 {[%clk 0:00:10]}  Kc3 {[%clk 0:00:12]} 55. Bf5 {[%clk 0:00:10]}  Kd2 {[%clk 0:00:13]} 56. h4 {[%clk 0:00:10]}  Kc1 {[%clk 0:00:14]} 57. h5 {[%clk 0:00:11]}  b1=Q {[%clk 0:00:14]} 58. Bxb1 {[%clk 0:00:10]}  Kxb1 {[%clk 0:00:13]} 59. h6 {[%clk 0:00:11]} 1-0


[Site "https://www.chess.com"]

[Event "Titled Tuesday Blitz November 14 Late 2023"]
[White "Fernandez Reyes, Lisandro"]
[Black "Wanyama, Harold"]
[WhiteFideId "3504190"]
[BlackFideId "10000380"]
[WhiteElo "2583"]
[BlackElo "2451"]
[Result "1-0"]
[Round "11"]
[TimeControl "180+1"]
[Date "2023.11.14"]
[WhiteClock "0:02:28"]
[BlackClock "0:00:53"]
[Board "43"]

1. e4 {[%clk 0:03:00]}  c5 {[%clk 0:02:53]} 2. Nc3 {[%clk 0:02:58]}  Nc6 {[%clk 0:02:45]} 3. f4 {[%clk 0:02:57]}  g6 {[%clk 0:02:45]} 4. Nf3 {[%clk 0:02:56]}  Bg7 {[%clk 0:02:45]} 5. Bb5 {[%clk 0:02:55]}  Nd4 {[%clk 0:02:37]} 6. O-O {[%clk 0:02:54]}  e6 {[%clk 0:02:37]} 7. a4 {[%clk 0:02:53]}  Ne7 {[%clk 0:02:35]} 8. e5 {[%clk 0:02:51]}  Nxf3+ {[%clk 0:02:33]} 9. Qxf3 {[%clk 0:02:50]}  O-O {[%clk 0:02:34]} 10. Ne4 {[%clk 0:02:50]}  a6 {[%clk 0:02:25]} 11. Bc4 {[%clk 0:02:49]}  Qc7 {[%clk 0:02:23]} 12. d3 {[%clk 0:02:39]}  Nf5 {[%clk 0:02:19]} 13. g4 {[%clk 0:02:32]}  Nd4 {[%clk 0:02:18]} 14. Qf2 {[%clk 0:02:33]}  b6 {[%clk 0:02:10]} 15. c3 {[%clk 0:02:33]}  Nc6 {[%clk 0:02:09]} 16. Nf6+ {[%clk 0:02:32]}  Kh8 {[%clk 0:02:06]} 17. Qh4 {[%clk 0:02:32]}  Bxf6 {[%clk 0:01:20]} 18. exf6 {[%clk 0:02:31]}  d5 {[%clk 0:01:12]} 19. Qh6 {[%clk 0:02:29]}  Rg8 {[%clk 0:00:53]} 20. Rf3 {[%clk 0:02:28]} 1-0


[Site "https://www.chess.com"]

[Event "Titled Tuesday Blitz November 14 Late 2023"]
[White "Mazzilli, Piero"]
[Black "Sanchez Alvares, Kelvin Antonio"]
[WhiteFideId "807087"]
[BlackFideId "3906680"]
[WhiteElo "2385"]
[BlackElo "2567"]
[Result "1-0"]
[Round "11"]
[TimeControl "180+1"]
[Date "2023.11.14"]
[WhiteClock "0:00:43"]
[BlackClock "0:01:23"]
[Board "46"]

1. e4 {[%clk 0:03:00]}  e5 {[%clk 0:02:58]} 2. Nf3 {[%clk 0:03:00]}  Nc6 {[%clk 0:02:54]} 3. Nc3 {[%clk 0:03:00]}  Bc5 {[%clk 0:02:52]} 4. Nxe5 {[%clk 0:02:57]}  Nxe5 {[%clk 0:02:53]} 5. d4 {[%clk 0:02:57]}  Bd6 {[%clk 0:02:54]} 6. dxe5 {[%clk 0:02:55]}  Bxe5 {[%clk 0:02:55]} 7. Bc4 {[%clk 0:02:52]}  Nf6 {[%clk 0:02:54]} 8. O-O {[%clk 0:02:48]}  O-O {[%clk 0:02:53]} 9. Bg5 {[%clk 0:02:47]}  Bxc3 {[%clk 0:02:49]} 10. bxc3 {[%clk 0:02:45]}  h6 {[%clk 0:02:49]} 11. Bh4 {[%clk 0:02:43]}  g5 {[%clk 0:02:49]} 12. Bg3 {[%clk 0:02:42]}  Nxe4 {[%clk 0:02:49]} 13. Bd3 {[%clk 0:02:35]}  Nxg3 {[%clk 0:02:40]} 14. fxg3 {[%clk 0:02:34]}  d6 {[%clk 0:02:41]} 15. Qh5 {[%clk 0:02:29]}  Kg7 {[%clk 0:02:35]} 16. Rxf7+ {[%clk 0:01:41]}  Rxf7 {[%clk 0:02:35]} 17. Qg6+ {[%clk 0:01:41]}  Kh8 {[%clk 0:02:11]} 18. Qxf7 {[%clk 0:01:29]}  Qg8 {[%clk 0:02:06]} 19. Qf6+ {[%clk 0:01:26]}  Qg7 {[%clk 0:02:06]} 20. Qd8+ {[%clk 0:01:25]}  Qg8 {[%clk 0:02:06]} 21. Qxc7 {[%clk 0:01:11]}  Be6 {[%clk 0:02:04]} 22. Re1 {[%clk 0:01:02]}  Rc8 {[%clk 0:01:52]} 23. Qxb7 {[%clk 0:00:51]}  Rxc3 {[%clk 0:01:30]} 24. Rxe6 {[%clk 0:00:44]}  Rxd3 {[%clk 0:01:23]} 25. Rxh6+ {[%clk 0:00:43]} 1-0


[Site "https://www.chess.com"]